bitfinex/quotes_BTCUSD_20240828
["timestamp","ask_amount","ask_price","bid_price","bid_amount"]
[1724853811031,0.000821,59612.0,59611.0,2.61253877]
[1724853811237,0.000821,59612.0,59611.0,2.71253877]
[1724853811573,0.000821,59612.0,59611.0,2.25403077]
[1724853811772,0.000821,59612.0,59611.0,2.58953877]
[1724853811970,0.000821,59612.0,59611.0,2.61253877]
[1724853812440,0.000821,59612.0,59611.0,2.25403077]
[1724853813239,0.000821,59612.0,59611.0,1.414554]
[1724853813440,0.167759,59610.0,59600.0,1.582367]
[1724853813645,0.167768,59606.0,59600.0,1.582367]
[1724853813851,0.138321,59612.0,59611.0,0.167754]
[1724853814058,0.061221,59612.0,59611.0,0.503262]
[1724853814468,0.000821,59612.0,59604.0,0.335545]
[1724853814671,0.000821,59612.0,59597.0,0.335584]
[1724853814931,0.000821,59612.0,59591.0,0.89382]
[1724853815136,0.167796,59596.0,59592.0,0.167806]
[1724853815335,0.167797,59596.0,59591.0,0.167808]
[1724853815544,0.0753,59607.0,59589.0,0.04973159]
[1724853815759,0.167802,59594.0,59589.0,0.21754659]
[1724853815982,0.839065,59590.0,59589.0,0.04843159]
[1724853816659,0.335626,59590.0,59585.0,0.09946319]
[1724853816865,0.1412,59593.0,59585.0,0.09946319]
[1724853817280,0.309006,59593.0,59587.0,0.16782]
[1724853817495,0.02630931,59590.0,59588.0,0.167817]
[1724853817833,0.02630931,59590.0,59589.0,0.167816]
[1724853818033,0.02630931,59590.0,59589.0,0.503448]
[1724853818235,0.02630931,59590.0,59589.0,1.34317277]
[1724853818664,0.11505949,59601.0,59600.0,0.167785]
[1724853818873,0.11505949,59601.0,59590.0,0.16846077]
[1724853819074,0.1413648,59601.0,59590.0,0.1718163]
[1724853819269,0.1413648,59601.0,59600.0,0.167785]
[1724853819517,0.1413648,59601.0,59597.0,0.167791]
[1724853819762,0.09220531,59601.0,59590.0,0.16846077]
[1724853819882,0.02630531,59601.0,59600.0,0.503355]
[1724853820101,0.02630531,59601.0,59600.0,0.167785]
[1724853820466,0.19408931,59601.0,59596.0,0.167796]
[1724853820800,0.167786,59600.0,59593.0,0.335606]
[1724853821021,0.167786,59600.0,59595.0,0.167797]
[1724853821227,0.02630531,59601.0,59584.0,0.1371]
[1724853821431,0.02630531,59601.0,59577.0,0.005]
[1724853821432,0.167798,59596.0,59586.0,0.50540786]
[1724853821634,0.335579,59599.0,59592.0,0.167806]
[1724853821839,0.335574,59600.0,59593.0,0.167803]
[1724853822044,0.335535,59607.0,59598.0,0.16779]
[1724853822243,0.38472314,59605.0,59597.0,0.167793]
[1724853822449,0.02630426,59600.0,59596.0,0.167795]
[1724853822699,0.02630426,59600.0,59599.0,0.5042638]
[1724853823494,0.02630426,59600.0,59599.0,0.0008998]
[1724853824358,0.52965926,59600.0,59599.0,0.0008998]
[1724853824590,0.86522926,59600.0,59599.0,0.0008998]
[1724853824824,1.34059926,59600.0,59599.0,0.0008998]
[1724853825065,1.00502926,59600.0,59599.0,0.0008998]
[1724853825315,0.02630426,59600.0,59599.0,0.0008998]
[1724853825568,0.02630426,59600.0,59599.0,0.5042638]
[1724853826018,0.02630426,59600.0,59599.0,0.1686878]
[1724853826238,0.02630426,59600.0,59599.0,0.5042638]
[1724853826933,0.02630426,59600.0,59599.0,0.1686878]
[1724853827163,0.02630426,59600.0,59599.0,0.0008998]
[1724853827576,0.02630426,59600.0,59599.0,0.5042638]
[1724853827798,0.02630426,59600.0,59599.0,0.8398398]
[1724853828005,0.02630426,59600.0,59599.0,0.5042638]
[1724853828903,0.02570426,59600.0,59599.0,1.34387657]
[1724853829125,0.063221,59612.0,59599.0,0.16936057]
[1724853829126,0.167762,59608.0,59599.0,0.16936057]
[1724853829350,0.167757,59610.0,59606.0,0.167768]
[1724853829565,0.167757,59610.0,59605.0,0.167769]
[1724853829778,0.167757,59610.0,59606.0,0.167767]
[1724853830217,0.335508,59611.0,59605.0,0.167769]
[1724853830436,0.335508,59611.0,59602.0,0.335558]
[1724853830617,0.063221,59612.0,59603.0,0.33890433]
[1724853830821,0.063221,59612.0,59603.0,0.00335533]
[1724853831026,0.063221,59612.0,59611.0,0.503262]
[1724853831027,0.000821,59612.0,59611.0,0.503262]
[1724853831198,0.000821,59612.0,59611.0,0.83877]
[1724853831808,0.000821,59612.0,59611.0,0.167754]
[1724853832213,0.000821,59612.0,59611.0,0.503262]
[1724853832390,0.000821,59612.0,59611.0,0.83877]
[1724853832592,0.000821,59612.0,59611.0,1.174278]
[1724853833112,0.000821,59612.0,59611.0,1.34273877]
[1724853833412,0.00816,59613.0,59612.0,1.174257]
[1724853833621,0.00816,59613.0,59612.0,1.34271777]
[1724853835577,0.00816,59613.0,59612.0,1.70121977]
[1724853835914,0.00816,59613.0,59612.0,1.67821977]
[1724853836117,0.00816,59613.0,59612.0,0.838755]
[1724853836349,0.00816,59613.0,59612.0,1.00721577]
[1724853836516,0.00816,59613.0,59612.0,1.34271777]
[1724853837446,0.00816,59613.0,59612.0,1.174257]
[1724853837844,0.00816,59613.0,59612.0,1.34271777]
[1724853839777,0.00816,59613.0,59612.0,1.36571777]
[1724853840390,0.00816,59613.0,59612.0,1.174257]
[1724853840598,0.00816,59613.0,59612.0,0.838755]
[1724853841581,0.167757,59610.0,59606.0,1.2468]
[1724853841837,0.00816,59613.0,59606.0,1.2468]
[1724853841838,0.167765,59607.0,59606.0,1.2468]
[1724853842052,0.503296,59607.0,59606.0,1.2468]
[1724853842286,0.335539,59606.0,59599.0,0.0008998]
[1724853842487,0.335539,59606.0,59602.0,0.167778]
[1724853842488,0.167768,59606.0,59602.0,0.167778]
[1724853842916,0.082,59607.0,59599.0,0.0008998]
[1724853843191,0.0634,59612.0,59599.0,0.00425526]
[1724853843407,0.0634,59612.0,59611.0,0.167754]
[1724853843622,0.00816,59613.0,59612.0,0.167751]
[1724853843824,0.00816,59613.0,59612.0,0.838755]
[1724853844232,0.00816,59613.0,59612.0,1.34271777]
[1724853844458,0.00816,59613.0,59612.0,1.42151777]
[1724853845156,0.00816,59613.0,59612.0,1.75701977]
[1724853845393,0.00816,59613.0,59612.0,1.78001977]
[1724853845600,0.00077442,59619.0,59618.0,1.50961]
[1724853845807,0.00816,59622.0,59621.0,1.13605466]
[1724853846006,0.00816,59622.0,59621.0,1.97541943]
[1724853846213,0.00816,59622.0,59621.0,2.4839396]
[1724853846415,0.00816,59622.0,59621.0,2.22728415]
[1724853846658,0.00816,59622.0,59621.0,2.17221943]
[1724853846853,0.00816,59622.0,59621.0,2.17721943]
[1724853847284,0.00020247,59626.0,59625.0,1.50943]
[1724853847490,0.04908439,59642.0,59634.0,0.503068]
[1724853847692,0.04908439,59642.0,59634.0,1.41998677]
[1724853847917,0.00816,59643.0,59634.0,1.41998677]
[1724853848366,0.00816,59643.0,59634.0,1.77836577]
[1724853848795,0.00816,59643.0,59638.0,1.173746]
[1724853849002,0.00816,59643.0,59638.0,1.70056277]
[1724853849425,0.00816,59643.0,59638.0,1.75561387]
[1724853849632,0.00816,59643.0,59638.0,2.33160863]
[1724853849841,0.00819,59645.0,59644.0,0.838305]
[1724853850053,0.0004,59659.0,59649.0,0.79536566]
[1724853850275,0.0004,59659.0,59658.0,1.13053466]
[1724853850517,0.0004,59659.0,59658.0,1.63423943]
[1724853850748,0.00818,59672.0,59665.0,1.46563866]
[1724853850969,0.00818,59672.0,59665.0,1.73719943]
[1724853851186,0.00818,59672.0,59665.0,1.66784599]
[1724853851408,0.00818,59672.0,59665.0,0.34356077]
[1724853851617,0.00690314,59672.0,59665.0,0.34356077]
[1724853851833,0.00690314,59672.0,59666.0,0.27181207]
[1724853852040,0.00690314,59672.0,59665.0,0.16846077]
[1724853852246,0.00690314,59672.0,59659.0,0.335233]
[1724853852465,0.00690314,59672.0,59658.0,0.0781]
[1724853852466,0.00690314,59672.0,59667.0,0.335193]
[1724853852691,0.0629,59668.0,59660.0,0.16846077]
[1724853852896,0.00690314,59672.0,59661.0,0.19146077]
[1724853853176,0.00690314,59672.0,59661.0,0.16846077]
[1724853853576,0.167602,59666.0,59660.0,0.04904219]
[1724853853781,0.00690314,59672.0,59660.0,0.04904219]
[1724853853782,0.335171,59671.0,59660.0,0.04904219]
[1724853853992,0.167594,59668.0,59660.0,0.04904219]
[1724853854197,0.00690314,59672.0,59665.0,0.167601]
[1724853854452,0.00690314,59672.0,59666.0,0.17181229]
[1724853854686,0.00690314,59672.0,59671.0,0.502756]
[1724853854888,0.00690314,59672.0,59671.0,0.33604577]
[1724853855097,0.00690314,59672.0,59671.0,0.16846077]
[1724853855305,0.00690314,59672.0,59671.0,1.08158777]
[1724853855553,0.00818,59682.0,59678.0,0.837827]
[1724853855773,0.0646,59696.0,59682.0,0.502663]
[1724853855991,0.075,59702.0,59682.0,0.33601477]
[1724853856216,0.167521,59694.0,59682.0,0.77112377]
[1724853856434,0.075,59702.0,59682.0,1.46634176]
[1724853856651,0.0646,59704.0,59698.0,0.167509]
[1724853856871,0.249271,59712.0,59698.0,1.00600777]
[1724853857094,0.0818,59712.0,59698.0,1.34102677]
[1724853857318,0.0602,59713.0,59698.0,1.36402677]
[1724853857754,0.1466,59719.0,59698.0,1.36402677]
[1724853857980,0.1466,59719.0,59698.0,1.80404577]
[1724853857981,0.0004,59719.0,59698.0,1.80404577]
[1724853858188,0.0004,59719.0,59718.0,0.334907]
[1724853858433,0.0004,59719.0,59718.0,0.837267]
[1724853858666,0.0004,59719.0,59712.0,0.0829]
[1724853858667,0.0004,59719.0,59712.0,0.167469]
[1724853858880,0.0004,59719.0,59702.0,0.412795]
[1724853859090,0.0004,59719.0,59707.0,0.04993011]
[1724853859306,0.0004,59719.0,59709.0,0.334954]
[1724853859517,0.0004,59719.0,59718.0,0.167453]
[1724853859777,0.0004,59719.0,59718.0,0.58016]
[1724853859981,0.0004,59719.0,59718.0,1.14742777]
[1724853860187,0.0004,59719.0,59718.0,0.81252077]
[1724853860613,0.0004,59719.0,59718.0,1.17042777]
[1724853860818,0.00818,59726.0,59725.0,0.83717]
[1724853861031,0.00818,59726.0,59718.0,0.33316077]
[1724853861032,0.00818,59726.0,59722.0,0.334882]
[1724853861275,0.00818,59726.0,59706.0,0.50540786]
[1724853861496,0.0606,59725.0,59714.0,0.04901877]
[1724853861706,0.0606,59725.0,59715.0,0.16846077]
[1724853861943,0.0606,59725.0,59722.0,0.167441]
[1724853862147,0.0606,59725.0,59715.0,0.16846077]
[1724853862148,0.0606,59725.0,59720.0,0.33824156]
[1724853862373,0.00818,59726.0,59725.0,0.167434]
[1724853862806,0.00818,59726.0,59723.0,0.167438]
[1724853863012,0.00818,59726.0,59715.0,0.16846077]
[1724853863221,0.00818,59726.0,59713.0,0.04927515]
[1724853863222,0.233464,59714.0,59713.0,0.04927515]
[1724853863429,0.0759,59723.0,59713.0,0.21674215]
[1724853863650,0.00818,59726.0,59721.0,0.167445]
[1724853863878,0.08408,59732.0,59717.0,0.334909]
[1724853864080,0.167429,59727.0,59720.0,0.167445]
[1724853864288,0.08408,59732.0,59721.0,0.334885]
[1724853864501,0.08408,59732.0,59712.0,0.22996077]
[1724853864715,0.08408,59732.0,59713.0,0.50875644]
[1724853864922,0.08408,59732.0,59714.0,0.00334878]
[1724853865130,0.08408,59732.0,59714.0,0.17180955]
[1724853865336,0.08408,59732.0,59719.0,0.334899]
[1724853865337,0.334841,59730.0,59719.0,0.334899]
[1724853865539,0.08408,59732.0,59720.0,0.00334858]
[1724853865747,0.08408,59732.0,59718.0,0.334902]
[1724853865947,0.167431,59726.0,59720.0,0.167446]
[1724853866147,0.167435,59725.0,59720.0,0.167446]
[1724853866401,0.08408,59732.0,59723.0,0.334875]
[1724853866586,0.167432,59726.0,59719.0,0.334901]
[1724853866793,0.0665,59729.0,59721.0,0.167444]
[1724853866992,0.0665,59729.0,59722.0,0.00334847]
[1724853867144,0.08408,59732.0,59718.0,0.21765926]
[1724853867145,0.167417,59731.0,59725.0,0.167432]
[1724853867349,0.08408,59732.0,59718.0,0.04919849]
[1724853867585,0.16745,59719.0,59718.0,0.04919849]
[1724853867783,0.0818,59719.0,59709.0,0.50540786]
[1724853867963,0.0818,59719.0,59701.0,0.335]
[1724853867964,0.167468,59713.0,59710.0,0.50540786]
[1724853868164,0.0818,59719.0,59707.0,0.04919001]
[1724853868165,0.08126474,59719.0,59707.0,0.04919001]
[1724853868590,0.08126474,59719.0,59692.0,0.0826]
[1724853868591,0.04211557,59719.0,59692.0,0.0826]
[1724853868818,0.005,59710.0,59692.0,0.04998553]
[1724853869035,0.50257,59693.0,59692.0,0.04998553]
[1724853869239,1.172664,59693.0,59692.0,0.04998553]
[1724853869456,0.167555,59682.0,59670.0,0.417773]
[1724853869656,0.167541,59687.0,59674.0,0.55522467]
[1724853869857,0.335103,59684.0,59674.0,0.55522467]
[1724853870140,0.335023,59698.0,59677.0,0.50540786]
[1724853870375,0.0623,59700.0,59699.0,0.167506]
[1724853870706,0.002,59715.0,59688.0,0.06335019]
[1724853870707,0.0623,59707.0,59688.0,0.06335019]
[1724853870914,0.0623,59707.0,59701.0,0.167499]
[1724853871123,0.0623,59707.0,59703.0,0.167494]
[1724853871336,0.0623,59707.0,59688.0,0.22846077]
[1724853871337,0.0762,59706.0,59702.0,0.167497]
[1724853871786,0.334941,59713.0,59701.0,0.00334979]
[1724853871787,0.1385,59713.0,59701.0,0.00334979]
[1724853872113,0.1385,59713.0,59695.0,0.04999009]
[1724853872243,0.1385,59713.0,59700.0,0.335007]
[1724853872489,0.1385,59713.0,59697.0,0.00334978]
[1724853872660,0.305969,59713.0,59702.0,0.334992]
[1724853872860,0.1385,59713.0,59707.0,0.167483]
[1724853873137,0.334946,59711.0,59695.0,0.16846077]
[1724853873345,0.16746,59716.0,59708.0,0.334963]
[1724853873552,0.0816,59718.0,59702.0,0.00334944]
[1724853873788,0.0816,59718.0,59716.0,0.167457]
[1724853874016,0.1,59725.0,59697.0,0.0773]
[1724853874017,0.0785,59730.0,59707.0,0.1468]
[1724853874287,0.0785,59730.0,59722.0,0.16744]
[1724853874497,0.0785,59730.0,59708.0,0.1718098]
[1724853874498,0.167426,59728.0,59718.0,0.334903]
[1724853874695,0.167426,59728.0,59713.0,0.334931]
[1724853874696,0.334846,59729.0,59713.0,0.50540786]
[1724853874898,0.0785,59730.0,59716.0,0.04908892]
[1724853875107,0.167456,59717.0,59716.0,0.04908892]
[1724853875315,0.167456,59717.0,59710.0,0.50540786]
[1724853875316,0.334902,59719.0,59710.0,0.50540786]
[1724853875528,0.167465,59714.0,59708.0,0.167481]
[1724853875730,0.33491,59718.0,59707.0,0.334965]
[1724853875933,0.005,59727.0,59705.0,0.04946602]
[1724853876141,0.167483,59708.0,59705.0,0.04946602]
[1724853876350,0.0794,59710.0,59705.0,0.04946602]
[1724853876563,0.0794,59710.0,59690.0,0.5782]
[1724853876564,0.0647,59707.0,59690.0,0.5782]
[1724853876791,0.0647,59707.0,59695.0,0.04989455]
[1724853877202,0.0794,59710.0,59696.0,0.33503]
[1724853877409,0.334991,59703.0,59695.0,0.04989455]
[1724853877588,0.0794,59710.0,59695.0,0.04989455]
[1724853877589,0.334997,59702.0,59695.0,0.04989455]
[1724853877841,0.0794,59710.0,59695.0,0.04989455]
[1724853878064,0.502545,59696.0,59695.0,0.04989455]
[1724853878268,0.335036,59695.0,59689.0,0.50540786]
[1724853878491,0.167513,59697.0,59692.0,0.167525]
[1724853878697,0.167515,59696.0,59688.0,0.04959722]
[1724853878872,0.0772,59703.0,59688.0,0.04959722]
[1724853879112,0.005,59714.0,59688.0,0.04959722]
[1724853879320,0.167525,59693.0,59688.0,0.04959722]
[1724853879525,0.335037,59695.0,59683.0,0.50540786]
[1724853879741,0.335037,59695.0,59680.0,0.399316]
[1724853879742,0.015,59704.0,59681.0,0.50540786]
[1724853879954,0.005,59708.0,59689.0,0.335065]
[1724853880153,0.167518,59695.0,59691.0,0.167528]
[1724853880357,0.005,59708.0,59691.0,0.167528]
[1724853880358,0.334965,59708.0,59691.0,0.335056]
[1724853880559,0.1,59707.0,59694.0,0.16752]
[1724853880766,0.167507,59699.0,59694.0,0.16752]
[1724853880972,0.01,59713.0,59692.0,0.335051]
[1724853880973,0.0287,59714.0,59693.0,0.07865038]
[1724853881177,0.167487,59707.0,59690.0,0.335063]
[1724853881376,0.335017,59699.0,59693.0,0.04956236]
[1724853881503,0.167513,59697.0,59693.0,0.04956236]
[1724853881908,0.16751,59698.0,59690.0,0.335063]
[1724853882195,0.167507,59699.0,59690.0,0.335063]
[1724853882403,0.167507,59699.0,59685.0,0.12494907]
[1724853882404,0.334988,59704.0,59688.0,0.335075]
[1724853882607,0.167504,59700.0,59695.0,0.167516]
[1724853882781,0.167504,59700.0,59686.0,0.3384364]
[1724853883015,0.071,59711.0,59701.0,0.335002]
[1724853883234,0.334938,59713.0,59705.0,0.167489]
[1724853883433,0.0287,59714.0,59689.0,1.2468]
[1724853883434,0.167502,59701.0,59689.0,1.2468]
[1724853883646,0.167491,59705.0,59690.0,0.26846077]
[1724853883852,0.167481,59709.0,59700.0,0.335007]
[1724853884055,0.167472,59712.0,59706.0,0.167484]
[1724853884239,0.071,59717.0,59690.0,0.26846077]
[1724853884484,0.167488,59706.0,59701.0,0.167501]
[1724853884692,0.071,59717.0,59700.0,0.04949309]
[1724853884915,0.167477,59710.0,59700.0,0.04949309]
[1724853885118,0.167485,59707.0,59702.0,0.167496]
[1724853885384,0.167485,59707.0,59701.0,0.335002]
[1724853885582,0.167488,59706.0,59702.0,0.167498]
[1724853885785,0.167484,59707.0,59701.0,0.334999]
[1724853885986,0.167484,59707.0,59702.0,0.167497]
[1724853886113,0.16748,59709.0,59702.0,0.334996]
[1724853886317,0.167485,59707.0,59702.0,0.167497]
[1724853886560,0.167468,59713.0,59705.0,0.334976]
[1724853886726,0.167473,59711.0,59707.0,0.167483]
[1724853886941,0.334938,59713.0,59700.0,0.04949309]
[1724853887202,0.334996,59703.0,59700.0,0.04949309]
[1724853887429,0.334996,59703.0,59688.0,0.0776]
[1724853887430,0.071,59703.0,59688.0,0.0776]
[1724853887685,0.071,59703.0,59693.0,0.335045]
[1724853887908,0.071,59703.0,59691.0,0.38421972]
[1724853888132,0.167526,59692.0,59691.0,0.04916172]
[1724853888363,0.33504,59695.0,59691.0,0.04916172]
[1724853888606,0.0287,59701.0,59686.0,0.064]
[1724853888875,0.0287,59701.0,59683.0,0.04966379]
[1724853888876,0.167549,59684.0,59683.0,0.04966379]
[1724853889105,0.071,59689.0,59683.0,0.04966379]
[1724853889385,0.071,59689.0,59671.0,0.4661216]
[1724853889386,0.071,59689.0,59671.0,0.1309536]
[1724853889632,0.1,59699.0,59681.0,0.50540786]
[1724853889903,0.0287,59701.0,59675.0,0.0796]
[1724853889904,0.335046,59694.0,59675.0,0.0796]
[1724853890182,0.16753,59691.0,59687.0,0.16754]
[1724853890382,0.167522,59694.0,59689.0,0.167534]
[1724853890585,0.167524,59693.0,59676.0,0.0662]
[1724853890790,0.167529,59691.0,59685.0,0.33509]
[1724853891008,0.335045,59694.0,59683.0,0.335101]
[1724853891226,0.406011,59700.0,59684.0,0.00335074]
[1724853891227,0.167509,59698.0,59684.0,0.00335074]
[1724853891464,0.0997,59705.0,59689.0,0.412966]
[1724853891668,0.0997,59705.0,59685.0,0.335091]
[1724853891876,0.0997,59705.0,59689.0,0.04959224]
[1724853891877,0.167531,59691.0,59689.0,0.04959224]
[1724853892096,0.502596,59690.0,59689.0,0.04959224]
[1724853892316,0.335052,59693.0,59683.0,0.335103]
[1724853892519,0.335044,59694.0,59683.0,0.335103]
[1724853892771,0.335013,59700.0,59685.0,0.50540786]
[1724853893003,0.167525,59693.0,59681.0,0.09964288]
[1724853893231,0.167525,59693.0,59685.0,0.335091]
[1724853893439,0.335027,59697.0,59686.0,0.335085]
[1724853893660,0.167521,59694.0,59689.0,0.167534]
[1724853893870,0.167521,59694.0,59681.0,0.12450484]
[1724853893871,0.167551,59683.0,59681.0,0.09964288]
[1724853894092,0.502666,59682.0,59681.0,0.04991897]
[1724853894307,0.502666,59682.0,59671.0,0.0818976]
[1724853894308,0.33514,59677.0,59671.0,0.0818976]
[1724853894503,0.335127,59679.0,59671.0,0.2494816]
[1724853894720,0.335116,59681.0,59674.0,0.1684736]
[1724853894928,0.167562,59680.0,59674.0,0.1684736]
[1724853895127,3e-06,59682.0,59675.0,0.335146]
[1724853895427,3e-06,59682.0,59675.0,0.00335131]
[1724853895630,3e-06,59682.0,59674.0,0.0008976]
[1724853895822,0.167562,59680.0,59674.0,0.3360466]
[1724853896002,3e-06,59682.0,59674.0,0.0008976]
[1724853896218,0.335127,59679.0,59674.0,0.0008976]
[1724853896425,3e-06,59682.0,59674.0,0.0008976]
[1724853896545,0.167567,59678.0,59674.0,0.0008976]
[1724853896748,0.502722,59675.0,59674.0,0.0008976]
[1724853896966,0.83787,59675.0,59674.0,0.0008976]
[1724853897566,1.263905,59675.0,59674.0,0.0008976]
[1724853897821,1.201718,59675.0,59674.0,0.0008976]
[1724853898200,1.203718,59675.0,59674.0,0.0008976]
[1724853898631,1.714866,59675.0,59674.0,0.0008976]
[1724853898853,0.01,59680.0,59674.0,0.0008976]
[1724853898854,0.238561,59680.0,59674.0,0.0008976]
[1724853899066,0.167574,59675.0,59674.0,0.0008976]
[1724853899243,0.071,59680.0,59674.0,0.0008976]
[1724853899465,0.167574,59675.0,59674.0,0.0008976]
[1724853899773,0.167566,59678.0,59674.0,0.0008976]
[1724853899973,3e-06,59682.0,59674.0,0.0008976]
[1724853900184,0.167569,59677.0,59674.0,0.0008976]
[1724853900397,3e-06,59682.0,59674.0,0.0008976]
[1724853900398,0.167574,59675.0,59674.0,0.0008976]
[1724853900623,0.167558,59681.0,59677.0,0.167568]
[1724853900840,3e-06,59682.0,59678.0,0.0828]
[1724853901053,0.167558,59681.0,59678.0,0.0828]
[1724853901271,3e-06,59682.0,59678.0,0.0828]
[1724853901272,0.335126,59679.0,59678.0,0.0828]
[1724853901483,3e-06,59682.0,59674.0,0.0008976]
[1724853901700,0.167566,59678.0,59674.0,0.1684746]
[1724853901914,3e-06,59682.0,59674.0,0.0008976]
[1724853902126,0.167573,59676.0,59674.0,0.0008976]
[1724853902336,0.502722,59675.0,59674.0,0.0008976]
[1724853902541,0.83787,59675.0,59674.0,0.0008976]
[1724853903190,1.173018,59675.0,59674.0,0.0008976]
[1724853903381,1.285505,59675.0,59674.0,0.0008976]
[1724853903520,1.301718,59675.0,59674.0,0.0008976]
[1724853903926,0.86657,59675.0,59674.0,0.0008976]
[1724853904158,0.50225,59675.0,59674.0,0.0008976]
[1724853904362,3e-06,59682.0,59674.0,0.0008976]
[1724853905001,0.167559,59682.0,59677.0,0.167566]
[1724853905234,0.167564,59679.0,59675.0,0.167573]
[1724853905404,3e-06,59682.0,59681.0,0.167557]
[1724853905758,3e-06,59682.0,59676.0,0.33514]
[1724853906008,3e-06,59682.0,59679.0,0.167561]
[1724853906212,3e-06,59682.0,59674.0,0.0008976]
[1724853906545,3e-06,59682.0,59681.0,0.583872]
[1724853907281,3e-06,59682.0,59681.0,0.918987]
[1724853907506,3e-06,59682.0,59681.0,0.648872]
[1724853908120,3e-06,59682.0,59681.0,0.638872]
[1724853908460,3e-06,59682.0,59681.0,1.14244777]
[1724853908616,3e-06,59682.0,59681.0,1.93567777]
[1724853908824,0.000819,59682.0,59681.0,1.93767776]
[1724853909032,0.005,59718.0,59681.0,1.93767776]
[1724853909033,0.01753288,59710.0,59691.0,0.08]
[1724853909260,0.030316,59719.0,59709.0,0.065]
[1724853909261,0.167454,59718.0,59709.0,0.065]
[1724853909470,0.000816,59719.0,59718.0,0.167453]
[1724853909667,0.000816,59719.0,59702.0,0.312497]
[1724853909668,0.167482,59708.0,59702.0,0.312497]
[1724853909886,0.000816,59719.0,59697.0,0.167511]
[1724853909887,0.334983,59705.0,59697.0,0.167511]
[1724853910092,0.1005,59718.0,59693.0,0.145]
[1724853910300,0.334978,59706.0,59693.0,0.145]
[1724853910525,0.005,59714.0,59693.0,0.19438695]
[1724853911194,0.005,59714.0,59697.0,0.167511]
[1724853911195,0.1675,59702.0,59697.0,0.167511]
[1724853911542,0.0206316,59717.0,59693.0,0.04938695]
[1724853911543,0.005,59711.0,59693.0,0.04938695]
[1724853911929,0.502563,59694.0,59693.0,0.04938695]
[1724853912178,0.16751,59698.0,59684.0,0.335097]
[1724853912385,0.171,59712.0,59687.0,0.29150204]
[1724853912596,0.167488,59706.0,59688.0,0.16846077]
[1724853912802,0.171,59712.0,59700.0,0.0761]
[1724853912803,0.405945,59712.0,59700.0,0.0761]
[1724853913008,0.405945,59712.0,59688.0,0.17181097]
[1724853913009,0.314996,59703.0,59692.0,0.335048]
[1724853913217,0.167501,59701.0,59693.0,0.335047]
[1724853913425,0.334961,59709.0,59700.0,0.38448511]
[1724853913426,0.167483,59708.0,59700.0,0.38448511]
[1724853913624,0.071,59712.0,59700.0,0.04947811]
[1724853914026,0.334964,59708.0,59700.0,0.04947811]
[1724853914247,0.071,59712.0,59697.0,0.33502]
[1724853914248,0.33495,59711.0,59697.0,0.335025]
[1724853914430,0.33495,59711.0,59694.0,0.335039]
[1724853914659,0.334953,59710.0,59696.0,0.04946284]
[1724853914838,0.334953,59710.0,59700.0,0.167502]
[1724853914976,0.167499,59702.0,59696.0,0.04946284]
[1724853915175,0.105,59718.0,59696.0,0.04946284]
[1724853915537,0.167488,59706.0,59696.0,0.04946284]
[1724853915770,0.167488,59706.0,59701.0,0.1675]
[1724853915888,0.334935,59713.0,59706.0,0.167484]
[1724853915889,0.167474,59711.0,59706.0,0.167484]
[1724853916092,0.334935,59713.0,59696.0,0.04946284]
[1724853916296,0.002,59718.0,59702.0,0.167497]
[1724853916499,0.002,59718.0,59696.0,0.04946284]
[1724853916500,0.167493,59704.0,59697.0,0.335022]
[1724853916745,0.167493,59704.0,59698.0,0.167507]
[1724853916957,0.167488,59706.0,59697.0,0.335022]
[1724853917159,0.002,59711.0,59694.0,0.167519]
[1724853917359,0.002,59713.0,59695.0,0.167516]
[1724853917575,0.167483,59708.0,59695.0,0.167516]
[1724853917796,0.167502,59701.0,59696.0,0.167515]
[1724853918003,0.167502,59701.0,59692.0,0.04965313]
[1724853918004,0.334994,59703.0,59694.0,0.16752]
[1724853918141,0.167507,59699.0,59694.0,0.167519]
[1724853918348,0.167507,59699.0,59695.0,0.167517]
[1724853918555,0.334988,59704.0,59692.0,0.04965313]
[1724853918761,0.06803113,59719.0,59704.0,0.00737414]
[1724853918934,0.334907,59718.0,59704.0,0.00737414]
[1724853919158,0.06803113,59719.0,59709.0,0.167476]
[1724853919159,0.167466,59714.0,59709.0,0.167476]
[1724853919352,0.167471,59712.0,59708.0,0.167481]
[1724853919560,0.334911,59718.0,59706.0,0.334973]
[1724853919761,0.16747,59712.0,59704.0,0.00737414]
[1724853919965,0.167485,59707.0,59704.0,0.00737414]
[1724853920165,0.07303113,59719.0,59704.0,0.00737414]
[1724853920372,0.334945,59712.0,59704.0,0.00737414]
[1724853920573,0.167485,59707.0,59704.0,0.00737414]
[1724853920770,0.000816,59718.0,59704.0,0.00737414]
[1724853921194,0.100816,59718.0,59712.0,0.167467]
[1724853921402,0.000816,59718.0,59710.0,0.0765]
[1724853921648,0.335723,59718.0,59710.0,0.0765]
[1724853921864,0.000816,59718.0,59711.0,0.334943]
[1724853922050,0.167463,59715.0,59711.0,0.167471]
[1724853922252,0.334914,59717.0,59710.0,0.0765]
[1724853922426,0.000816,59718.0,59710.0,0.0765]
[1724853922803,0.000816,59718.0,59714.0,0.167464]
[1724853923044,0.000816,59718.0,59716.0,0.167458]
[1724853923271,0.000816,59718.0,59710.0,0.0765]
[1724853923479,0.000816,59718.0,59712.0,0.33494]
[1724853923682,0.000816,59718.0,59710.0,0.0765]
[1724853923887,0.000816,59718.0,59710.0,0.243975]
[1724853923888,0.167467,59714.0,59710.0,0.243975]
[1724853924095,0.000816,59718.0,59715.0,0.16746]
[1724853924710,0.000816,59718.0,59715.0,0.334923]
[1724853924919,0.000816,59718.0,59717.0,0.167456]
[1724853925163,0.000816,59718.0,59710.0,0.0765]
[1724853925372,0.168272,59718.0,59711.0,0.334942]
[1724853925577,0.168272,59718.0,59714.0,0.167464]
[1724853925791,0.168272,59718.0,59710.0,0.0765]
[1724853925792,0.168271,59718.0,59710.0,0.0765]